Cogmind - Beta 17 @@@ ROGUE MODE // 2026.07.28 @ 21:05:55 Player: aperiodic Result: Destroyed by S-10 Pest with Light Assault Rifle Performance ------------- Evolutions (0) 0 Regions Visited (2) 400 Robots Destroyed (25) 125 Value Destroyed (414) 414 Prototype IDs (14) 280 Alien Tech Used (0) 0 Bonus (0) 0 TOTAL SCORE: 1219 Bonus ------- None Cogmind --------- Core Integrity 0/250 Matter 300/300 Energy 160/160 System Corruption 0% Temperature Cool (0) Movement Rolling (110) Location -10/Subcaves Parts ------- > --- POWER (1) -------- Light Nuclear Core > --- PROPULSION (2) --- Subdweller Monowheel > --- UTILITY (2) ------ Heat Sink Seismic Detector > --- WEAPON (2) ------- Barrage Gun Makeshift Spear > --- INVENTORY (5) ---- Makeshift System Shield Light Assault Rifle Light Assault Rifle Rocket Launcher Multitool Peak State ------------ > --- POWER ------------ Light Nuclear Core > --- PROPULSION ------- Subdweller Monowheel Subdweller Monowheel > --- UTILITY ---------- Heat Sink Seismic Detector > --- WEAPON ----------- Barrage Gun Makeshift Spear > --- INVENTORY -------- Makeshift System Shield Light Assault Rifle Light Assault Rifle Rocket Launcher Multitool [Rating: 17] Favorites ----------- Power Light Nuclear Core Engine Light Ion Engine Power Core Light Nuclear Core Propulsion Wheel Treads Light Treads Wheel Wheel Utility Seismic Detector Device Seismic Detector Storage Huge Storage Unit Weapon Small Laser Energy Gun Small Laser Ballistic Gun Barrage Gun Launcher Grenade Launcher Special Weapon Mining Laser Piercing Weapon Makeshift Spear Build | -11 -10 -10 ------- Run | Yrd Mat Sub Slots Evolved . | . . . Power . | . . . Propulsion . | . . . Utility . | . . . Weapon . | . . . Parts Attached 25 | 7 11 7 Power 3 | 1 2 . Engine 2 | 1 1 . Core 1 | . 1 . Reactor . | . . . Propulsion 7 | 2 3 2 Treads 1 | . 1 . Leg . | . . . Wheel 6 | 2 2 2 Hover . | . . . Flight . | . . . Utility 6 | 2 4 . Device 4 | 1 3 . Storage 2 | 1 1 . Processor . | . . . Hackware . | . . . Protection . | . . . Artifact . | . . . Weapon 9 | 2 2 5 Energy Gun 4 | 2 1 1 Energy Cannon . | . . . Ballistic Gun 2 | . . 2 Ballistic Cannon . | . . . Launcher 1 | . 1 . Special Weapon 1 | . . 1 Impact Weapon . | . . . Slashing Weapon . | . . . Piercing Weapon 1 | . . 1 Special Melee Weapon . | . . . Unidentified Prototypes . | . . . Parts Lost 6 | . 3 3 Power 1 | . 1 . Propulsion 4 | . 1 3 Utility 1 | . 1 . Weapon . | . . . Highest Loss Streak 3 | . 3 1 To Critical Strikes . | . . . Average Backups 13 | 3 17 10 Power . | . 1 . Propulsion 2 | 2 3 2 Utility 2 | . 2 1 Weapon 7 | . 9 6 Tool/Special . | . . . Unused Backups 23 | 2 2 19 Power 2 | . . 2 Propulsion 7 | 1 2 4 Utility 3 | . . 3 Weapon 11 | 1 . 10 Tool/Special . | . . . Average Slot Usage (%) 98 | . 97 99 Engine 4 | . 9 . Core 9 | . 4 14 Wheel 26 | . 26 27 Device 18 | . 13 23 Storage 9 | . 14 4 Energy Gun 15 | . 27 2 Ballistic Gun 8 | . . 17 Piercing Weapon 3 | . . 7 Peak Build Rating 17 | 7 11 17 Average Rating 11 | 5 9 14 On Entrance 6 | . 7 11 Avg Prop Armor Cover (%) 4 | . . 4 Naked Turns . | . . . Heaviest Build 92 | 13 89 92 Greatest Support 20 | 20 20 20 Greatest Overweight (x) 8 | 1 8 4 Average Overweight (x) 2 | . 3 1 Largest Inventory Capacity 25 | 8 25 25 Average Capacity 16 | 7 22 10 Most Carried 25 | 8 25 25 Average Carried 13 | 3 17 10 Final Capacity 25 | 8 25 5 Final Carried 25 | 8 25 5 Class Distribution -------------------- 73% | Mutant 26% | Scavenger-Mutant Dominant Class ---------------- Mutant | -10/Materials Scavenger-Mutant | -10/Subcaves Resources | -11 -10 -10 ----------- Run | Yrd Mat Sub Matter Collected 718 | 270 325 123 Remotely . | . . . Salvage Created 658 | 143 385 130 Parts 45 | 13 21 11 Haulers Intercepted 1 | . 1 . Recyclers Shooed 2 | . 2 . Parts Field Recycled . | . . . Retrieved Matter . | . . . Parts Self-Destructed 14 | . . 14 Prevented . | . . . Parts Restored . | . . . Kills | -11 -10 -10 ------- Run | Yrd Mat Sub Combat Hostiles Destroyed 14 | . 10 4 Melee 3 | . . 3 Guns 7 | . 6 1 AOE 3 | . 3 . Classes Destroyed 9 | 2 6 1 Worker 2 | . 2 . Builder 1 | . 1 . Tunneler 4 | 3 1 . Hauler 1 | . 1 . Recycler 1 | 1 . . Watcher 2 | . 2 . Swarmer 7 | . 6 1 Grunt 4 | . 4 . Subdweller 3 | . . 3 Best Kill Streak 4 | 2 4 1 Combat Bots Only 3 | . 3 1 Max Kills in Single Turn 4 | 1 4 1 Gunslinging . | . . . Exploded 3 | . 3 . Melee 1 | . . 1 Uniques/NPCs Destroyed . | . . . Combat | -11 -10 -10 -------- Run | Yrd Mat Sub Hostile Shots Fired 93 | . 44 49 Missed 15 | . 7 8 Hits 78 | . 37 41 Projectile 78 | . 37 41 Critical Strikes 1 | . 1 . Damage Taken 986 | . 404 582 Core 257 | . 58 199 Absorbed by Shields . | . . . Core Remaining (%) 100 | 100 . . Volleys Fired 58 | 7 44 7 Largest 2 | 2 2 2 Hottest 100 | 80 90 100 Shots Fired 114 | 14 87 13 Gun 112 | 14 86 12 Cannon . | . . . Launcher 1 | . 1 . Special 1 | . . 1 Kinetic 12 | . . 12 Thermal 101 | 14 86 1 Explosive 1 | . 1 . Electromagnetic . | . . . Robot Hit Streak 8 | 5 8 6 Robot Miss Streak 7 | 1 7 1 Penetration Max . | . . . Secondary Targets . | . . . Shots Hit Robots 78 | 10 49 19 Core Hits 34 | 5 23 6 Critical Kills . | . . . Critical Parts Destroyed . | . . . Critical Strikes 3 | . 2 1 Burn 2 | . 2 . Impale 1 | . . 1 Melee Attacks 20 | . . 20 Impact . | . . . Slashing . | . . . Piercing 20 | . . 20 Sneak Attacks . | . . . Combat Hostiles . | . . . Follow-up Attacks . | . . . Damage Inflicted 1282 | 114 724 444 Guns 864 | 114 575 175 Cannons . | . . . Explosions 149 | . 149 . Melee 269 | . . 269 Ramming . | . . . Kinetic 175 | . . 175 Thermal 689 | 114 575 . Explosive 149 | . 149 . Electromagnetic . | . . . Impact . | . . . Slashing . | . . . Piercing 269 | . . 269 Highest Corruption . | . . . Average Corruption . | . . . Corruption Purged . | . . . Corruption Blocked . | . . . Overload Shots . | . . . Overflow Damage 11 | . . 11 Projectiles . | . . . Explosions . | . . . Melee 11 | . . 11 Knockbacks . | . . . Impact . | . . . Kinetic . | . . . Secondary . | . . . Self-Inflicted Damage 15 | . 15 . Shots 1 | . 1 . Rammed . | . . . Targets Rammed . | . . . Kicked . | . . . Crushed . | . . . Highest Temperature 267 | 90 267 . Average Temperature 69 | 39 73 . Received Heat Transfer 249 | . 90 159 Siege Activations . | . . . Martial Activations . | . . . Shielding Activations . | . . . Robots Disrupted . | . . . Combat Hostiles . | . . . Robots Corrupted . | . . . Combat Hostiles . | . . . Parts Fried . | . . . Impact Corruptions . | . . . Robots Melted 1 | . 1 . Combat Hostiles 1 | . 1 . Parts Melted 6 | . 5 1 Heat Transferred 1875 | 250 1625 . Parts Sabotaged . | . . . Parts Stolen . | . . . Parts Stripped . | . . . Power Chain Reactions . | . . . Alert | -11 -10 -10 ------- Run | Yrd Mat Sub Maximum Alert Level . | . . . Low Security (%) 100 | 100 100 . Level 1 . | . . . Level 2 . | . . . Level 3 . | . . . Level 4 . | . . . Level 5 . | . . . High Security . | . . . Max Security . | . . . Peak Influence 87 | 10 87 . Initial . | . . . Average 11 | 1 12 . Influence Increases 392 | 20 292 80 Destroy 0b10 Robot/C 220 | . 200 20 Destroy 0b10 Robot/NC 55 | 20 35 . Destroy Leader 36 | . 36 . Successful Hack 10 | . 10 . Destroy Structure 11 | . 11 . Lose Combat Pursuer 60 | . . 60 Influence Decreases 330 | 20 292 18 Time Decay 310 | 20 282 8 Lost Part 20 | . 10 10 Squads Dispatched 1 | . 1 . Investigation 1 | . 1 . Extermination . | . . . Reinforcement . | . . . Assault . | . . . Garrison . | . . . Intercept . | . . . Searches Triggered . | . . . Construction Impeded . | . . . Haulers Reinforced . | . . . Active Scanning Responses . | . . . Cargo Convoy Interrupts . | . . . Stealth | -11 -10 -10 --------- Run | Yrd Mat Sub Distress Signals 1 | . 1 . Communications Jammed . | . . . Distress Signals . | . . . Times Spotted 23 | . 15 8 Peak Tracking Total 6 | . 4 6 Tactical Retreats 2 | . . 2 Traps | -11 -10 -10 ------- Run | Yrd Mat Sub Traps Triggered 2 | . 2 . Indirectly . | . . . Trap Hack Attempts . | . . . Triggered . | . . . Disarmed . | . . . Reprogrammed . | . . . Reused . | . . . Traps Extracted . | . . . Installed . | . . . Triggered . | . . . Machines | -11 -10 -10 ---------- Run | Yrd Mat Sub Machines Disabled . | . . . Max in Single Turn . | . . . Machines Repaired . | . . . Machines Dismantled . | . . . Machines Sabotaged . | . . . Overloaded Fab Kills . | . . . Hacking | -11 -10 -10 --------- Run | Yrd Mat Sub Machines Accessed 4 | . 2 2 Terminals 2 | . 2 . Fabricators . | . . . Repair Stations . | . . . Recycling Units . | . . . Scanalyzers . | . . . Garrison Access . | . . . Total Hacks 7 | . 5 2 Successful 5 | . 3 2 Failed 2 | . 2 . Catastrophic . | . . . Database Lockouts . | . . . Manual 3 | . 3 . Terminals 5 | . 5 . Fabricators . | . . . Repair Stations . | . . . Recycling Units . | . . . Scanalyzers . | . . . Garrison Access . | . . . Terminal Hacks 3 | . 1 2 Robot Analysis 1 | . 1 . Open Door 1 | . . 1 Proto ID Catalog 1 | . . 1 Fabricator Hacks . | . . . Repair Station Hacks . | . . . Recycling Unit Hacks . | . . . Scanalyzer . | . . . Garrison Access Hacks . | . . . Unauthorized Hacks 2 | . 2 . Terminals 2 | . 2 . Assimilate 2 | . 2 . Fabricators . | . . . Repair Stations . | . . . Recycling Units . | . . . Scanalyzers . | . . . Garrison Access . | . . . Data Cores Recovered . | . . . Used . | . . . Hacking Detections 1 | . 1 . Full Trace Events . | . . . Feedback Events . | . . . Feedback Blocked . | . . . Robot Schematics Acquired . | . . . Robots Built . | . . . Authchips . | . . . Time . | . . . Total Robot Build Rating . | . . . Part Schematics Acquired . | . . . Parts Built . | . . . Authchips . | . . . Time . | . . . Total Part Build Rating . | . . . Part Studies Acquired . | . . . Parts Repaired . | . . . Time . | . . . Parts Recycled . | . . . Recycled Matter . | . . . Retrieved Matter . | . . . Retrieved Components . | . . . Parts Scanalyzed . | . . . Part Schematics Acquired . | . . . Parts Damaged . | . . . Bothacking | -11 -10 -10 ------------ Run | Yrd Mat Sub Used RIF Installer . | . . . Robots Hacked . | . . . Non-combat . | . . . Combat . | . . . Robot Hacks Applied . | . . . Relay Couplers Released . | . . . Fabnet Peak Effective % . | . . . Robots Rewired . | . . . Allies Hacked . | . . . Hacks Repelled . | . . . Allies | -11 -10 -10 -------- Run | Yrd Mat Sub Total Allies 2 | . 2 . Largest Group 2 | . 2 2 Highest-Rated Group 20 | . 20 20 Highest-Rated Ally 10 | . 10 10 Total Orders 6 | . 5 1 STAY 4 | . 3 1 FOLLOW 2 | . 2 . Ally Attacks . | . . . Total Damage . | . . . Kills . | . . . Allies Corrupted . | . . . Allies Melted . | . . . Intel | -11 -10 -10 ------- Run | Yrd Mat Sub Active Infowar (turns) 2483 | 48 1175 1260 Seismic 2483 | 48 1175 1260 Robot Analysis Total 1 | . 1 . Derelict Logs Recovered 2 | . . 2 Drone Launches . | . . . Drone Recoveries . | . . . Exploration | -11 -10 -10 ------------- Run | Yrd Mat Sub Turns Passed 2757 | 111 1386 1260 Spaces Moved 1814 | 75 705 1034 Core 19 | 3 . 16 Treads 3 | . 3 . Legs . | . . . Wheels 1792 | 72 702 1018 Hover . | . . . Flight . | . . . Fastest Speed 50 | 50 80 80 Average Speed 116 | 80 130 109 Slowest Speed 200 | 100 200 200 Overloaded Moves . | . . . Propulsion Burnouts . | . . . Robots Hopped . | . . . Potential Cave-ins . | . . . Cave-ins Triggered . | . . . Exploration Rate (%) 47 | 4 88 50 Regions Visited 2 Branch Regions 1 Pre-discovered Areas 2 | . . 2 Known Exits Taken . | . . . Unknown Exits Taken 2 | 1 1 . Scrap Searched 1 | . . 1 Spaces Dug . | . . . Terrain Destroyed 8 | . 8 . Melee . | . . . Projectile . | . . . AOE 8 | . 8 . Terrain Rammed . | . . . Walls Destroyed . | . . . Machines Disabled . | . . . Actions | -11 -10 -10 --------- Run | Yrd Mat Sub Total 2326 | 109 1083 1134 Wait 349 | 9 296 44 Move 1812 | 74 704 1034 Hop . | . . . Pick Up 38 | 10 20 8 Fast Attach 16 | 7 2 7 Attach 1 | . 1 . Detach . | . . . Swap 11 | . 10 1 Drop 21 | 2 6 13 Fire 58 | 7 44 7 Melee 20 | . . 20 Ram . | . . . Kick . | . . . Crush . | . . . Escape Stasis . | . . . Rewire . | . . . Trap . | . . . Miscellaneous . | . . . Route ------- -11/Scrapyard -10/Materials (discovered 5 exits: [*Mat x3] / [*Min] / *Sub) -10/Subcaves (discovered 1 exit: [*Mat]) History --------- Turn | Location | Event 2 | -11/Scrapyard | Met Revision 17 19 | -11/Scrapyard | Discovered new exit (range 15) 112 | -11/Scrapyard | Entered Materials 320 | -10/Materials | Build established: Mutant 431 | -10/Materials | Discovered new exit (range 16) 431 | -10/Materials | Discovered new exit (range 8) 477 | -10/Materials | Discovered new exit (range 15) 873 | -10/Materials | Discovered new exit (range 4) 1035 | -10/Materials | Lost 3 parts (1p1n1u) 1208 | -10/Materials | Discovered new exit (range 9) 1498 | -10/Materials | Entered Subcaves 1498 | -10/Subcaves | Accompanied by 2 allies 1499 | -10/Subcaves | Approached by a straggling Scientist 1512 | -10/Subcaves | Shifting Twisted Machinery released Barrage Gun 1565 | -10/Subcaves | Shifting Twisted Machinery released Barrage Gun 1973 | -10/Subcaves | Shifting Twisted Machinery released Sub. Power Source 1973 | -10/Subcaves | Shifting Twisted Machinery released Mak. Spear 2109 | -10/Subcaves | A swath of the cavern ceiling suddenly collapsed 2116 | -10/Subcaves | Discovered new exit (range 7) 2174 | -10/Subcaves | Learned location of Zion (-7) 2176 | -10/Subcaves | Learned location of Mines (-9) 2266 | -10/Subcaves | Build established: Scavenger-Mutant 2493 | -10/Subcaves | Core integrity fell below 50% 2670 | -10/Subcaves | Visited 4L-MR0's lab 2743 | -10/Subcaves | Core integrity fell below 20% 2758 | -10/Subcaves | Destroyed by S-10 Pest with Light Assault Rifle Last Messages --------------- Rainbow Chip Procsplitter VL-GR5's Exoskeleton "Deathgrip" Powered Cannon 02676_ 4L-MR0 mumbles: "I'm surprised some of them are even willing to come in here given their fear of my usual visitors." 02681_ 4L-MR0 mumbles: "Who knows where that last prototype ended up, probably tossed aside somewhere as if it were useless junk..." YV-Y3X(c): "We're getting close, I can feel it." 02729_ Dropped Hover Unit. 02733_ Acquired Multitool. 02741_ S-10 Pest destroyed. 02745_ Destroyed Flight Unit. 02747_ Lgt. Assault Rifle fries itself beyond repair. 02747_ Sub. Monowheel destroyed. 02749_ S-10 Pest destroyed. 02758_ Flight Unit fries itself beyond repair. Map ----- +----------------------------------------------------+ | ???????# "" ######??????????????????????????????? | | ???###?##" # #??????????????????????????????? | | ?### #### ##??????????????????????????????? | | ?# ## %## "#??????????????????????????????? | | ?## ######" "###????????????????????????????? | | ?# ### " #############????????????????? | | ?## # # # # # #????????????????? | | ## ##????????????????? | | ## ## #????????????????? | | ###### ##### # # ##????????????????? | | ##?????# #### #???#### #?????????????????? | | ???????#########% ##??## ##?????????????????? | | ?????????## = #### ###??????????????????? | | ???????### ## ##??## ???????????????? | | ??? ##?? ??????????????? | | ??? ### ##?? ???????????????? | | ??? ###???### #??# ???????????????? | | ???? ???######### ## #?#"" ?????????????????? | | ??? ????## ### ## ### """#?????????????????? | | ???????## ## =##### #???????????????????? | | ???## ## # #????????????????????? | | ## #????????????????????? | | ### % ##????????????????????? | | # ## #?#### |%### #????????????????????? | | ##?????## ###??# %[####s## """""?????????????? | | ????????## #??# @ #???????????????? | | ###??????# ##??# &% ##???????????????? | | # ######## #??# & ## ##????????????????? | | ## ## ### #?????????????????? | | #### #?# "#?????????????????? | | ##?## #?##### #?????????????????? | | ## ##?# ?????? #?????????????????? | | ### #### ?????? #?????????????????? | | ### ### #?????? ?????????????????? | | ### #?????? ##????????????????? | | ##?## ???????? ?????????????????? | | ###???? ???????? ?????????????????? | | ### #?????? ?????????#????????????????? | | ## #?# #?????? ??????????????????????????? | | #### #?# ####?????????????????????????????????? | | ##??# ##?# #?????????????????????????????????? | | #???###??# #????????????????????????????????? | | #????????# ^ #????????????????????????????????? | | #????????#" #????????????????????????????????? | | #???????? " #???????????????????????????????? | | ?????????""% # ??????????????????????????????? | | ????????? ????????????????????????????? | | ###????? ???????????????????????????? | | ##??## ## ??????????????????????????? | | ###" % ####????????????????????????????? | +----------------------------------------------------+ Best States ------------- Heat Dissipation 35 Energy Generation 14 Energy Capacity 250 Matter Stores 300 Matter Capacity 300 Sight Range 16 Terrain Scan Density 10 Evasion (%) 44 Recoil Reduction 1 Item Schematics ----------------- None Robot Schematics ------------------ None Fabricated ------------ Nothing Repaired ---------- Nothing Studied --------- None Alien Tech Used ----------------- None Achievements -------------- None Challenges ------------ None Game ------ Seed SpikedVisualLeg Manual? 0 Play Time 00:20:47 Cumulative 780.8 hours Start 2026.07.28 @ 20:45:31 End 2026.07.28 @ 21:05:55 Sessions 1 Manual Loads 0 Difficulty Rogue Special Mode None Game No. 284 Rogue 280 Adventurer 4 Explorer 0 Win Type - Total 21 Types 9/2/6/0/0/0/2/2/0/0 Lore% 89 Gallery% 77 Achievement% 61 Wizard Run 0 Options --------- Layout 1 ASCII 0 Keyboard 0 Movement Arrows Keybinds 0 Fullscreen 1 Font 40/SmallcapsGlow Map View 50x40 Zoom Use 0% Tactical HUD 1 Map Filters NONE Filters NONE Steam 1 RUN: aa8c933f-c020-46cd-85b8-c3da33b9b333